bitfinex/quotes_ETHUSD_20250814
["timestamp","ask_amount","ask_price","bid_price","bid_amount"]
[1755201186706,10.60700803,4555.3,4555.2,1e-08]
[1755201186909,0.55,4554.8,4550.0,16.38093898]
[1755201187108,1.316,4554.9,4550.9,0.087927]
[1755201187109,0.55,4552.7,4550.9,0.087927]
[1755201187326,3.0,4553.9,4551.0,0.4635]
[1755201187327,0.55,4552.5,4551.0,0.4635]
[1755201187523,0.55,4552.3,4551.0,0.4635]
[1755201187739,0.55,4552.1,4551.0,0.4635]
[1755201188047,0.55,4551.9,4551.0,0.4635]
[1755201188218,0.55,4551.9,4551.1,2.19726612]
[1755201188543,0.55,4551.9,4551.2,0.4635]
[1755201189055,0.55,4551.7,4551.2,0.4635]
[1755201189257,0.55,4551.5,4551.3,0.4635]
[1755201189414,0.55,4551.5,4550.1,2.19774756]
[1755201189595,0.55,4551.5,4551.1,2.19726814]
[1755201189801,2.19635405,4553.0,4551.2,2.66067497]
[1755201190027,0.55,4552.6,4551.3,0.4635]
[1755201190237,0.55,4552.4,4550.2,0.21977476]
[1755201190454,3.55,4552.2,4550.9,0.4635]
[1755201190656,0.4523,4552.7,4550.9,0.4635]
[1755201190862,0.55,4552.2,4550.9,0.4635]
[1755201191059,0.55,4552.0,4550.9,0.4635]
[1755201191455,0.55,4552.0,4551.0,2.19731927]
[1755201191657,0.55,4551.8,4551.2,2.19721325]
[1755201191846,3.451,4551.7,4551.3,2.19717187]
[1755201192058,0.4523,4552.8,4551.5,2.19707406]
[1755201192262,18.57695495,4553.8,4551.6,0.4635]
[1755201192263,0.55,4552.6,4551.6,0.4635]
[1755201192464,0.55,4552.4,4551.6,0.4635]
[1755201192768,0.55,4552.2,4551.2,0.4635]
[1755201193072,1.57388437,4555.6,4551.2,0.7295819]
[1755201193238,3.4523,4553.0,4551.5,0.0223]
[1755201193433,0.55,4552.8,4551.5,0.4858]
[1755201193852,0.55,4552.6,4551.5,0.4858]
[1755201194214,0.55,4552.8,4551.7,2.19697718]
[1755201194374,0.55,4552.8,4551.5,0.4858]
[1755201194534,0.55,4552.8,4551.7,2.19693907]
[1755201194879,0.55,4552.9,4551.5,0.0223]
[1755201195182,0.55,4552.6,4551.8,0.4635]
[1755201195487,0.55,4552.4,4551.8,0.4635]
[1755201195630,0.55,4552.2,4551.8,0.4635]
[1755201195972,0.55,4552.2,4551.9,0.4635]
[1755201196177,0.1096,4552.3,4552.0,0.4635]
[1755201196360,0.1096,4552.7,4552.4,2.19663467]
[1755201196537,0.55,4552.5,4552.1,0.1096]
[1755201196738,0.55,4552.5,4552.2,2.19673573]
[1755201196974,0.55,4552.3,4552.2,2.19673573]
[1755201197174,0.55,4552.3,4552.1,2.30638689]
[1755201197336,0.55,4552.6,4552.2,0.4635]
[1755201197538,0.55,4552.4,4552.2,0.4635]
[1755201197762,0.55,4552.4,4552.3,0.4635]
[1755201198372,0.55,4552.4,4552.1,0.1096]
[1755201198557,0.55,4552.4,4552.2,2.66019837]
[1755201198771,3.448,4552.3,4552.1,0.1096]
[1755201199483,3.998,4552.3,4552.2,0.4635]
[1755201199995,3.998,4552.3,4552.2,2.66024003]
[1755201200792,0.55,4552.9,4552.2,1.06976753]
[1755201201012,0.55,4552.7,4552.3,0.4635]
[1755201201373,0.55,4552.7,4552.4,2.19664352]
[1755201201739,0.55,4552.7,4552.5,0.437]
[1755201201869,1.73769999,4552.7,4552.6,2.19654702]
[1755201202186,1.73769999,4552.7,4552.6,2.63354702]
[1755201202385,1.73769999,4552.7,4552.6,3.12752607]
[1755201202386,1.18769999,4552.7,4552.6,3.12752607]
[1755201203583,1.16609999,4552.7,4552.6,3.12752607]
[1755201204312,9.23578354,4554.2,4552.6,3.12752607]
[1755201204313,0.4477,4554.7,4552.7,3.0]
[1755201204604,0.55,4553.9,4552.6,0.437]
[1755201204805,0.55,4553.7,4552.6,0.437]
[1755201204962,0.55,4553.5,4552.0,5.19683186]
[1755201205166,0.55,4553.3,4552.3,2.19668338]
[1755201205398,3.45,4553.2,4552.3,2.19668338]
[1755201205978,3.45,4553.2,4552.4,2.19659782]
[1755201206501,0.55,4553.1,4551.9,0.437]
[1755201206705,3.449,4553.0,4552.7,2.19645451]
[1755201206909,0.55,4552.9,4552.8,0.437]
[1755201207269,0.55,4552.9,4552.0,2.19683655]
[1755201207469,0.55,4552.9,4551.9,0.437]
[1755201207671,0.55,4552.9,4552.2,2.19670198]
[1755201207906,0.55,4552.9,4552.3,2.19668106]
[1755201208416,0.55,4552.9,4551.9,2.6338846]
[1755201208981,0.55,4552.9,4552.0,2.19683655]
[1755201209610,0.55,4552.9,4552.3,2.19668021]
[1755201209823,0.55,4552.9,4551.9,0.437]
[1755201210024,0.55,4552.7,4552.5,2.19658259]
[1755201210211,0.55,4552.7,4552.3,0.437]
[1755201210740,0.55,4552.7,4551.9,0.437]
[1755201211218,0.55,4552.7,4552.5,0.0223]
[1755201212334,0.55,4552.7,4552.6,0.437]
[1755201212542,0.55,4552.7,4552.5,0.0223]
[1755201215819,0.55,4552.6,4552.5,0.0223]
[1755201216025,0.55,4552.6,4552.5,0.4593]
[1755201216444,0.55,4552.6,4552.5,2.65589527]
[1755201217017,0.002,4552.9,4552.5,1.0651159]
[1755201217243,0.002,4552.9,4552.8,2.19645053]
[1755201217452,0.002,4552.9,4552.8,2.74305053]
[1755201218661,0.002,4552.9,4552.8,2.30605053]
[1755201218818,0.002,4552.9,4552.8,0.1096]
[1755201219165,0.002,4552.9,4552.5,0.0223]
[1755201219346,0.55,4552.7,4552.5,0.0223]
[1755201219530,3.992,4552.6,4552.5,0.0223]
[1755201219732,4.5493,4552.6,4552.5,0.0223]
[1755201219943,4.1016,4552.6,4552.5,0.0223]
[1755201220724,0.002,4552.9,4552.5,0.0223]
[1755201220963,0.002,4552.9,4552.8,2.19645053]
[1755201221170,0.002,4552.9,4552.8,2.46202558]
[1755201221325,0.002,4552.9,4552.8,2.89902558]
[1755201222165,0.552,4552.9,4552.5,0.0223]
[1755201222478,0.9997,4552.9,4552.5,0.0223]
[1755201222631,0.4477,4552.8,4552.5,0.0223]
[1755201222827,0.552,4552.9,4552.5,0.0223]
[1755201223066,0.4477,4552.8,4552.5,0.0223]
[1755201223261,0.552,4552.9,4552.5,0.0223]
[1755201223834,0.002,4552.9,4552.5,0.0223]
[1755201224041,0.55,4552.7,4552.6,2.19651186]
[1755201224237,0.002,4552.9,4552.8,2.19645053]
[1755201224455,0.002,4552.9,4552.8,2.63345053]
[1755201224648,0.002,4552.9,4552.8,2.19645053]
[1755201225078,0.002,4552.9,4552.8,2.63345053]
[1755201225481,0.002,4552.9,4552.5,0.437]
[1755201225652,0.002,4552.9,4552.8,2.19645053]
[1755201226682,0.002,4552.9,4552.6,2.19650623]
[1755201226888,0.002,4552.9,4552.1,0.437]
[1755201227185,0.002,4552.9,4551.7,3.445]
[1755201227186,0.002,4552.9,4552.4,2.19664352]
[1755201227401,0.002,4552.9,4552.8,2.19645053]
[1755201227688,0.002,4552.9,4552.8,2.63345053]
[1755201229162,0.002,4553.4,4553.3,2.19620934]
[1755201229360,0.002,4553.4,4553.3,2.63320934]
[1755201229685,0.002,4553.4,4553.3,6.46045811]
[1755201230401,0.002,4553.4,4553.3,3.02345811]
[1755201230553,0.002,4553.4,4553.3,2.19620934]
[1755201230754,0.002,4553.4,4553.3,2.74280934]
[1755201231455,0.002,4553.4,4553.3,2.76510934]
[1755201233196,0.002,4553.4,4553.3,6.20710934]
[1755201235166,0.002,4553.4,4553.3,2.32810934]
[1755201235375,0.9946,4553.4,4553.3,0.0223]
[1755201235591,0.552,4553.4,4553.3,0.0223]
[1755201235768,1e-08,4553.4,4553.3,5.67000934]
[1755201236062,1e-08,4553.4,4553.3,7.10054041]
[1755201238574,1e-08,4553.4,4553.3,10.56554041]
[1755201242079,1e-08,4553.4,4553.3,7.11404041]
[1755201242263,1e-08,4553.4,4553.3,8.68350934]
[1755201243805,1e-08,4553.4,4553.3,8.67450934]
[1755201245314,1e-08,4553.4,4553.3,8.78410934]
[1755201247444,1e-08,4553.4,4553.3,0.1319]
[1755201247745,0.44260001,4553.4,4553.3,0.1319]
[1755201248422,0.99260001,4553.4,4553.3,0.0223]
[1755201248749,1.44620001,4553.4,4553.3,0.0223]
[1755201249551,3.64236112,4553.4,4553.3,0.0223]
[1755201249722,3.64236112,4553.4,4552.6,0.001]
[1755201249723,0.55,4552.8,4552.6,0.001]
[1755201249924,0.55,4552.6,4550.3,0.4515]
[1755201250119,0.55,4552.4,4551.7,2.19698032]
[1755201250320,0.9926,4552.3,4551.2,2.19718572]
[1755201250608,0.9926,4552.3,4551.5,2.19706896]
[1755201250832,0.9926,4552.3,4551.8,2.19692179]
[1755201251032,0.9926,4552.3,4551.9,2.1968786]
[1755201251207,0.9926,4552.3,4551.0,0.4515]
[1755201251410,0.9926,4552.3,4551.9,2.19684011]
[1755201251609,0.9926,4552.3,4552.0,2.19781443]
[1755201251811,0.9926,4552.3,4552.0,0.001]
[1755201255952,0.4426,4552.3,4552.0,0.001]
[1755201256454,0.4426,4552.3,4552.2,0.0611]
[1755201256756,0.9926,4552.3,4552.2,0.0611]
[1755201257719,3.64289178,4552.3,4552.2,0.0611]
[1755201258244,1.4462,4552.3,4552.2,0.0611]
[1755201258750,3.64289178,4552.3,4552.2,0.0611]
[1755201259159,1.4462,4552.3,4552.2,0.0611]
[1755201259356,3.64289178,4552.3,4552.2,0.0611]
[1755201259852,1.5558,4552.3,4552.2,0.0611]
[1755201260264,3.75249178,4552.3,4552.2,0.0611]
[1755201260825,1.5558,4552.3,4552.2,0.0611]
[1755201262463,3.75249178,4552.3,4552.2,0.0611]
[1755201262660,1.5558,4552.3,4552.2,0.0611]
[1755201263420,3.75249178,4552.3,4552.2,0.0611]
[1755201264576,1.5558,4552.3,4552.2,0.0611]
[1755201264924,1.5558,4552.3,4551.7,0.001]
[1755201264925,1.08299999,4551.8,4551.7,0.001]
[1755201265153,4.52999999,4551.8,4551.7,0.001]
[1755201265382,5.10369999,4551.8,4551.7,0.001]
[1755201266865,4.63959999,4551.8,4551.7,0.001]
[1755201268046,14.89063307,4551.8,4551.7,0.001]
[1755201268359,12.69369999,4551.8,4551.7,0.001]
[1755201269640,14.89063307,4551.8,4551.7,0.001]
[1755201269962,12.69369999,4551.8,4551.7,0.001]
[1755201272067,14.89063307,4551.8,4551.7,0.001]
[1755201272755,12.69369999,4551.8,4551.7,0.001]
[1755201272955,0.55,4551.5,4550.7,0.1106]
[1755201273126,0.55,4551.3,4550.7,0.1106]
[1755201273321,0.55,4551.1,4550.7,0.1106]
[1755201273528,0.55,4550.9,4550.7,0.1106]
[1755201273824,1.57199999,4550.8,4550.7,0.1106]
[1755201274261,1.57199999,4550.8,4550.7,2.78146412]
[1755201274485,1.02199999,4550.8,4550.7,2.78146412]
[1755201274666,1.02199999,4550.8,4550.7,3.2793705]
[1755201275660,3.439,4551.0,4550.9,2.19736755]
[1755201275872,3.439,4551.0,4550.9,2.67076755]
[1755201276028,0.55,4551.2,4550.9,2.67076755]
[1755201276233,0.55,4551.2,4550.9,2.19736755]
[1755201276453,0.55,4551.2,4551.0,0.4734]
[1755201277772,0.55,4551.2,4551.0,2.19729698]
[1755201277974,0.55,4551.2,4551.1,0.4734]
[1755201278541,0.55,4551.2,4550.8,2.19741061]
[1755201278940,0.55,4551.2,4550.9,0.4734]
[1755201280283,0.55,4551.4,4550.7,0.1106]
[1755201280466,0.1096,4551.2,4550.7,0.001]
[1755201280791,0.1096,4551.2,4550.9,0.0224]
[1755201280792,0.55,4551.0,4550.9,0.0224]
[1755201286371,0.1116,4551.8,4551.3,2.19717409]
[1755201286697,3.437,4551.7,4550.9,0.35407693]
[1755201286997,3.437,4551.7,4550.9,0.0224]
[1755201286998,0.1096,4551.0,4550.9,0.0224]
[1755201287307,3.5466,4551.0,4550.9,0.0224]
[1755201287482,5.03269999,4551.0,4550.9,0.0224]
[1755201287668,4.45899999,4551.0,4550.9,0.0224]
[1755201288066,4.45899999,4551.0,4550.9,2.69316755]
[1755201288287,1.02199999,4551.0,4550.9,2.96258431]
[1755201288792,1.02199999,4551.0,4550.9,0.76521676]
[1755201288982,1.02199999,4551.0,4550.9,2.96258431]
[1755201289316,3.437,4551.1,4550.9,2.96258431]
[1755201289487,3.437,4551.1,4550.9,0.0224]
[1755201289816,0.55,4551.0,4550.9,0.0224]
[1755201290332,0.002,4551.8,4551.7,2.19698134]
[1755201290645,1e-08,4551.8,4551.7,5.67038134]
[1755201290782,1e-08,4551.8,4551.7,6.80082451]
[1755201290984,1e-08,4551.8,4551.7,3.80082451]
[1755201291196,1e-08,4551.8,4551.7,2.67038134]
[1755201292676,1e-08,4551.8,4551.7,6.12528134]
[1755201292978,1e-08,4551.8,4551.7,6.35938099]
[1755201293377,1e-08,4551.8,4551.7,9.10738134]
[1755201293583,1e-08,4551.8,4551.7,2.67038134]
[1755201293822,1e-08,4551.8,4551.7,3.45712451]
[1755201297530,1e-08,4551.8,4551.7,2.19698134]
[1755201297704,1e-08,4551.8,4551.7,2.30658134]
[1755201299013,1e-08,4551.8,4551.7,2.77718134]
[1755201299321,1e-08,4551.8,4551.7,2.30658134]
[1755201300342,1e-08,4551.8,4550.8,2.19837315]
[1755201300343,0.55,4551.7,4550.8,0.001]
[1755201300552,0.55,4551.7,4546.9,0.1]
[1755201300553,0.55,4550.8,4548.5,2.19850867]
[1755201300848,0.55,4550.4,4548.6,0.69045087]
[1755201300998,0.55,4550.5,4549.9,0.001]
[1755201301204,0.55,4550.2,4549.9,0.001]
[1755201301416,0.55,4550.0,4549.9,0.001]
[1755201301633,1.4604,4550.0,4549.9,0.001]
[1755201301803,3.437,4550.5,4549.9,0.001]
[1755201302009,0.55,4550.5,4549.9,0.001]
[1755201302841,0.55,4550.8,4549.9,0.001]
[1755201303045,0.55,4550.8,4550.0,2.19780219]
[1755201303350,0.55,4551.0,4550.2,2.19769555]
[1755201303749,0.55,4551.0,4550.5,2.1975489]
[1755201304112,0.55,4551.0,4550.3,2.19761519]
[1755201304350,0.55,4551.0,4550.3,0.48659772]
[1755201304572,0.55,4551.0,4550.0,2.1977913]
[1755201304850,0.55,4551.0,4549.9,0.001]
[1755201305065,0.55,4551.5,4550.0,2.66840219]
[1755201305279,0.55,4551.5,4550.8,2.19737736]
[1755201305571,0.55,4551.5,4550.4,2.19758885]
[1755201305734,0.55,4551.3,4549.9,0.001]
[1755201306055,0.55,4551.1,4549.9,0.001]
[1755201306225,0.55,4550.9,4549.9,0.001]
[1755201306415,0.55,4550.9,4550.3,2.19761571]
[1755201306812,0.55,4550.9,4549.9,0.001]
[1755201307093,0.55,4550.9,4550.0,2.19780219]
[1755201307211,0.55,4550.9,4549.9,0.001]
[1755201307554,0.55,4550.7,4549.9,0.001]
[1755201307854,0.4714,4551.0,4549.9,0.001]
[1755201307855,0.55,4550.3,4549.9,0.001]
[1755201308040,0.55,4550.5,4549.9,0.001]
[1755201308041,0.55,4550.0,4549.9,0.001]
[1755201308357,3.65820219,4550.0,4549.9,0.001]
[1755201309456,7.09520219,4550.0,4549.9,0.001]
[1755201309676,4.8974,4550.0,4549.9,0.001]
[1755201309879,7.09520219,4550.0,4549.9,0.001]
[1755201310083,10.09520219,4550.0,4549.9,0.001]
[1755201310577,10.20480219,4550.0,4549.9,0.001]
[1755201310785,2.74799542,4549.6,4549.5,0.001]
[1755201310987,6.76799542,4549.6,4549.5,0.001]
[1755201311193,2.19848735,4548.6,4546.6,0.4549]
[1755201311356,0.55,4548.4,4547.7,0.1096]
[1755201311560,0.55,4548.2,4547.7,0.1096]
[1755201311773,0.55,4548.2,4547.8,0.4706]
[1755201311975,3.44,4548.3,4547.9,0.4706]
[1755201312177,3.99,4548.3,4548.2,2.198672]
[1755201312357,0.55,4549.1,4548.4,2.19852946]
[1755201312555,0.55,4548.9,4548.2,0.5802]
[1755201312773,0.55,4548.9,4548.2,0.60218672]
[1755201312952,0.55,4548.9,4548.3,0.02198623]
[1755201313166,0.55,4548.9,4548.4,2.19853701]
[1755201313365,0.55,4548.9,4548.5,0.49258526]
[1755201313568,0.55,4548.9,4548.5,0.4706]
[1755201313773,0.55,4548.9,4548.2,0.1096]
[1755201313976,0.55,4549.1,4547.0,3.0]
[1755201314154,0.1096,4548.9,4548.2,0.1096]
[1755201316190,0.989,4549.1,4547.6,0.4706]
[1755201316191,1.02199999,4548.8,4548.6,0.1096]
[1755201316357,1.02199999,4548.8,4548.6,2.30803521]
[1755201316691,1.57199999,4548.8,4548.6,2.30806849]
[1755201316892,1.57199999,4548.8,4548.7,2.19843032]
[1755201317293,1.02199999,4549.1,4549.0,2.19824716]
[1755201317453,1.02199999,4549.1,4549.0,2.66884716]
[1755201317653,0.1096,4549.7,4549.1,2.19822231]
[1755201317856,0.1096,4550.1,4549.8,2.1978691]
[1755201318168,0.1096,4550.7,4549.9,0.4706]
[1755201318379,0.55,4550.6,4550.0,0.1096]
[1755201318692,0.1096,4550.7,4550.0,0.1096]
[1755201318995,0.1096,4550.7,4550.4,2.1975971]
[1755201319155,3.438,4550.8,4550.4,2.1975971]
[1755201319354,3.438,4550.8,4550.5,0.1096]
[1755201319708,0.55,4550.7,4550.5,0.1096]
[1755201320009,1.02,4550.7,4550.0,0.1096]
[1755201320218,0.55,4550.6,4550.0,0.1096]
[1755201321309,0.55,4550.4,4548.6,2.19846878]
[1755201321510,0.55,4550.0,4548.7,2.19842346]
[1755201321688,0.55,4549.8,4548.9,2.19833066]
[1755201322291,3.44,4549.7,4549.0,0.4645]
[1755201322479,0.55,4549.8,4549.0,0.4645]
[1755201322684,0.55,4549.8,4549.3,2.19813655]
[1755201322915,0.55,4549.8,4549.2,2.19817966]
[1755201323314,0.55,4549.8,4548.9,0.4645]
[1755201323915,1.0241,4549.8,4548.3,0.4645]
[1755201324124,0.55,4549.8,4548.4,0.83293575]
[1755201324328,3.439,4549.9,4548.5,2.19852698]
[1755201324521,3.439,4549.9,4548.6,0.02198478]
[1755201324706,3.439,4549.9,4549.7,2.19794031]
[1755201325625,0.55,4549.8,4549.0,2.19824975]
[1755201325824,0.55,4549.8,4548.6,0.4645]
[1755201326000,0.55,4549.8,4549.3,2.19813967]
[1755201326319,0.55,4549.8,4549.3,2.19813179]
[1755201326637,0.55,4549.8,4549.4,2.1980877]
[1755201326835,0.55,4549.8,4549.0,0.4645]
[1755201327039,0.55,4549.8,4549.3,2.19810431]
[1755201327236,0.55,4549.8,4548.4,3.0]
[1755201327439,0.55,4549.8,4548.6,3.4645]
[1755201327639,0.55,4549.8,4548.9,2.1982969]
[1755201327806,0.55,4549.8,4548.6,3.4645]
[1755201327992,0.55,4549.8,4549.0,2.19823845]
[1755201328521,0.55,4549.8,4548.6,0.4645]
[1755201328709,0.55,4549.8,4548.7,0.13281623]
[1755201328914,0.55,4549.8,4549.2,2.19818121]
[1755201329697,0.55,4549.8,4548.7,2.33120813]
[1755201329904,0.55,4549.8,4549.0,2.19823731]
[1755201330100,1.02199999,4549.7,4548.6,0.4645]
[1755201330314,0.55,4549.6,4548.7,2.19839333]
[1755201330726,0.55,4549.6,4548.8,2.19838085]
[1755201331226,0.55,4549.6,4548.9,2.19833303]
[1755201331398,0.55,4549.6,4549.0,0.1096]
[1755201332146,1.02199999,4549.7,4549.4,2.1980534]
[1755201332288,1.02199999,4549.7,4549.5,2.19801501]
[1755201332633,1.02199999,4549.7,4549.4,0.1096]
[1755201333013,0.55,4549.6,4549.4,0.1096]
[1755201333218,1.4903,4549.6,4548.8,2.19838199]
[1755201333395,1.4903,4549.6,4549.0,0.1096]
[1755201333930,0.55,4549.6,4549.3,2.19810464]
[1755201334229,0.55,4549.6,4549.4,2.30768839]
[1755201334527,0.55,4549.6,4549.4,0.1096]
[1755201335894,1.02199999,4549.5,4549.4,0.1096]
[1755201337190,1.57199999,4549.5,4549.4,0.1096]
[1755201337394,2.51229999,4549.5,4549.4,0.1096]
[1755201337594,2.04609999,4549.5,4549.4,0.1096]
[1755201337820,1.57199999,4549.5,4549.4,0.1096]
[1755201338238,0.55,4549.4,4548.7,0.0224]
[1755201338392,0.55,4549.2,4548.8,0.1096]
[1755201338593,0.4741,4549.1,4548.8,0.1096]
[1755201338819,1.0162,4549.2,4548.8,0.1096]
[1755201339021,0.55,4549.1,4548.8,0.1096]
[1755201339221,0.0272,4549.1,4548.8,0.1096]
[1755201339500,0.55,4548.9,4548.8,0.1096]
[1755201339755,2.04609999,4548.9,4548.7,0.0224]
[1755201339898,3.988,4548.8,4548.7,0.0224]
[1755201340099,5.48409999,4548.8,4548.7,0.0224]
[1755201340518,5.00999999,4548.8,4548.7,0.0224]
[1755201341948,5.48409999,4548.8,4548.7,0.0224]
[1755201342237,5.95029999,4548.8,4548.7,0.0224]
[1755201343394,8.14868198,4548.8,4548.7,0.0224]
[1755201344023,18.18868198,4548.8,4548.7,0.0224]
[1755201348707,18.66014362,4548.8,4548.7,0.0224]
[1755201349347,2.74886538,4547.8,4547.7,0.001]
[1755201349548,3.988,4547.8,4547.7,0.001]
[1755201349905,4.0976,4547.8,4547.7,0.001]
[1755201350439,6.77056538,4547.8,4547.7,0.001]
[1755201350744,7.23676538,4547.8,4547.7,0.001]
[1755201351128,4.0976,4547.8,4547.7,0.001]
[1755201351328,6.29646538,4547.8,4547.7,0.001]
[1755201351536,6.72766538,4547.8,4547.7,0.001]
[1755201351717,10.6507947,4547.8,4547.7,0.001]
[1755201352444,7.37717406,4547.8,4547.7,0.001]
[1755201352606,10.34414474,4547.8,4547.7,0.001]
[1755201353506,4.13003328,4547.8,4547.7,0.001]
[1755201353707,6.5476,4547.8,4547.7,0.001]
[1755201354005,3.5476,4547.8,4547.7,0.4594]
[1755201354241,3.438,4547.8,4547.7,0.4594]
[1755201354443,3.988,4547.8,4547.7,0.4594]
[1755201354657,3.988,4547.8,4547.7,0.001]
[1755201354945,6.988,4547.8,4547.7,0.0735]
[1755201355172,10.07016538,4547.8,4547.7,0.0735]
[1755201357061,6.63216538,4547.8,4547.7,0.0735]
[1755201357354,8.63786538,4547.8,4547.7,0.0735]
[1755201357524,3.989,4547.8,4547.7,0.0735]
[1755201357922,3.439,4547.8,4547.7,0.0735]
[1755201358133,2.1987215,4548.1,4547.7,0.0735]
[1755201358333,2.19877947,4548.0,4547.7,0.0735]
[1755201358535,0.55,4547.9,4547.7,0.0735]
[1755201358742,0.4793,4549.1,4547.8,0.4584]
[1755201359071,2.19834445,4548.9,4547.8,0.9458]
[1755201359216,0.0272,4549.1,4547.9,0.4584]
[1755201359217,2.22547527,4549.1,4547.9,0.4584]
[1755201359414,2.22547527,4549.1,4547.7,0.0735]
[1755201359415,0.0272,4549.1,4547.7,0.0735]
[1755201359775,0.55,4548.7,4547.7,0.5319]
[1755201359930,3.44,4548.6,4547.8,2.19881791]
[1755201360112,0.55,4548.5,4547.7,2.27240243]
[1755201360314,0.0272,4549.1,4547.7,2.27240243]
[1755201360315,0.0272,4549.1,4547.9,0.4584]
[1755201360521,0.0272,4549.1,4548.0,0.02198768]
[1755201360829,0.002,4550.3,4548.4,3.0]
[1755201361039,0.002,4550.3,4548.5,0.96778526]
[1755201361244,0.552,4550.3,4548.9,2.19833366]
[1755201361440,0.002,4550.3,4549.0,0.21983337]
[1755201361652,0.552,4550.3,4549.0,0.67823337]
[1755201361953,0.552,4550.3,4549.0,0.4584]
[1755201362944,2.74775553,4550.1,4549.0,0.4584]
[1755201363146,0.55,4550.1,4549.0,0.4584]
[1755201363859,2.7478095,4550.0,4549.0,0.4584]
[1755201364057,0.55,4549.8,4549.0,0.4584]
[1755201364732,0.55,4549.8,4549.1,0.26567387]
[1755201365139,0.55,4549.5,4549.1,0.26567387]
[1755201365332,0.55,4549.3,4549.1,0.4584]
[1755201366050,0.55,4549.3,4548.9,0.1096]
[1755201366255,0.55,4549.1,4548.2,0.4584]
[1755201366441,0.55,4548.8,4548.3,0.1096]
[1755201366642,0.55,4548.6,4547.9,0.4584]
[1755201366820,0.55,4548.6,4548.1,0.1096]
[1755201367025,0.55,4548.6,4548.2,0.001]
[1755201368062,0.55,4548.3,4548.2,0.001]
[1755201368725,3.992,4548.3,4548.2,0.4594]
[1755201368919,3.442,4548.3,4548.2,2.92388976]
[1755201369280,3.992,4548.3,4548.2,0.37641776]
[1755201369426,3.992,4548.3,4548.2,0.1106]
[1755201370064,3.992,4548.3,4548.2,0.001]
[1755201370269,4.9849,4548.3,4548.2,0.001]
[1755201370531,4.5537,4548.3,4548.2,0.001]
[1755201370728,0.1096,4548.3,4548.2,0.001]
[1755201370928,0.002,4550.1,4548.2,0.4594]
[1755201371172,3.445,4550.0,4548.2,0.9468]
[1755201371467,3.445,4550.0,4548.5,2.19852693]
[1755201371777,3.445,4550.0,4548.7,2.19843032]
[1755201372077,3.448,4549.9,4548.8,2.6567699]
[1755201372362,3.448,4549.8,4549.2,2.19816797]
[1755201372535,3.448,4549.8,4549.2,0.4584]
[1755201372729,0.55,4549.7,4549.0,2.1982826]
[1755201373364,0.55,4549.7,4549.0,2.68379328]
[1755201373568,0.55,4549.7,4548.4,2.19856574]
[1755201373762,0.55,4549.7,4548.3,0.4584]
[1755201373763,0.55,4549.7,4548.2,0.001]
[1755201374063,0.55,4549.4,4548.2,0.4594]
[1755201374229,2.7481054,4549.4,4548.2,0.4594]
[1755201374426,5.19814037,4549.3,4548.2,0.001]
[1755201374790,2.74853843,4548.5,4548.2,0.001]
[1755201374925,3.45,4548.4,4548.2,0.001]
[1755201375326,0.55,4548.3,4548.2,0.001]
[1755201375551,1.4333,4548.3,4548.2,0.0735]
[1755201375956,3.63192366,4548.3,4548.2,0.0735]
[1755201376233,1.4333,4548.3,4548.2,0.0735]
[1755201377152,1.0021,4548.3,4548.2,0.0735]
[1755201377583,1.0021,4548.3,4548.2,0.0958]
[1755201377878,3.20072366,4548.3,4548.2,0.0958]
[1755201378368,1.0021,4548.3,4548.2,0.0958]
[1755201378601,3.20072366,4548.3,4548.2,0.0958]
[1755201378964,3.63192366,4548.3,4548.2,0.0958]
[1755201379800,1.4333,4548.3,4548.2,0.0958]
[1755201380969,0.6596,4548.3,4548.2,0.0958]
[1755201381480,4.1066,4548.3,4548.2,0.0958]
[1755201381881,6.30522366,4548.3,4548.2,0.0958]
[1755201382058,5.019,4548.3,4548.2,0.0958]
[1755201382259,4.5816,4548.3,4548.2,0.0958]
[1755201382687,7.21762366,4548.3,4548.2,0.0958]
[1755201383500,26.52475395,4548.3,4548.2,1e-08]
[1755201383864,10.11002366,4548.3,4548.2,1e-08]
[1755201385177,10.10902366,4548.3,4548.2,1e-08]
[1755201387489,26.52575395,4548.3,4548.2,1e-08]
[1755201387692,5.748672,4548.2,4548.1,1e-08]
[1755201387988,6.661072,4548.2,4548.1,1e-08]
[1755201388516,0.55,4547.0,4546.4,0.4482]
[1755201388811,0.55,4546.8,4546.4,0.4482]
[1755201388984,0.55,4546.6,4546.4,2.64771607]
[1755201389181,1.02199998,4546.9,4546.6,2.19942697]
[1755201389382,3.445,4546.8,4546.7,0.9457]
[1755201389582,3.445,4546.8,4546.7,3.14509736]
[1755201390315,3.445,4546.8,4546.7,0.9457]
[1755201390477,3.445,4546.8,4546.7,0.4482]
[1755201390977,3.445,4546.8,4546.7,0.9457]
[1755201391188,3.445,4546.8,4546.7,1.48016437]
[1755201391387,3.445,4546.8,4546.7,0.9457]
[1755201391791,3.445,4546.8,4546.7,0.4482]
[1755201392524,3.445,4546.8,4546.7,3.14509736]
[1755201392900,3.445,4546.8,4546.7,0.9457]
[1755201393089,3.445,4546.8,4546.7,0.4482]
[1755201393425,3.445,4546.8,4546.7,0.5578]